bitfinex-derivatives/quotes_BTCF0:USTF0_20250930
["timestamp","ask_amount","ask_price","bid_price","bid_amount"]
[1759246562852,1.45895492,113220.0,113210.0,0.1108642]
[1759246563049,0.59863492,113220.0,113210.0,0.1241242]
[1759246563247,1.4264663,113220.0,113210.0,0.1241242]
[1759246563642,1.4389863,113220.0,113210.0,0.02256]
[1759246563955,0.1194939,113210.0,113200.0,0.51926005]
[1759246564248,0.19097832,113210.0,113200.0,0.02256]
[1759246564453,0.55177832,113210.0,113200.0,0.1108718]
[1759246564641,0.55177832,113210.0,113200.0,0.1112718]
[1759246564844,0.19097832,113210.0,113200.0,0.1112718]
[1759246565046,0.55177832,113210.0,113200.0,0.1112718]
[1759246565251,0.55177832,113210.0,113200.0,0.02296]
[1759246565653,0.55177832,113210.0,113200.0,0.1112718]
[1759246565850,0.55177832,113210.0,113200.0,0.02296]
[1759246566049,0.55177832,113210.0,113200.0,0.1112718]
[1759246567050,0.55177832,113210.0,113200.0,0.1108718]
[1759246567251,0.19097832,113210.0,113200.0,0.1112718]
[1759246567552,0.1225618,113200.0,113190.0,0.04759335]
[1759246567757,0.1225696,113190.0,113180.0,0.20015335]
[1759246567950,0.1225696,113190.0,113180.0,0.04759335]
[1759246568253,0.1225696,113190.0,113180.0,0.15848075]
[1759246568453,0.1225696,113190.0,113180.0,0.28848075]
[1759246568658,0.1225696,113190.0,113180.0,0.28888075]
[1759246568857,0.1225696,113190.0,113180.0,0.2412874]
[1759246569859,0.57750752,113190.0,113180.0,0.2412874]
[1759246570057,0.1225696,113190.0,113180.0,0.2412874]
[1759246570361,0.1096496,113190.0,113180.0,0.2545474]
[1759246570754,0.9563696,113190.0,113180.0,0.2545474]
[1759246570955,0.1096496,113190.0,113180.0,0.2545474]
[1759246571158,0.9563696,113190.0,113180.0,0.2545474]
[1759246571455,0.9563296,113190.0,113180.0,0.2545474]
[1759246571855,0.9692496,113190.0,113180.0,0.2545474]
[1759246572756,0.9692496,113190.0,113180.0,0.16622]
[1759246572953,1.78498752,113190.0,113180.0,0.1304]
[1759246573259,0.1225777,113180.0,113170.0,0.52008305]
[1759246573555,0.1225777,113180.0,113170.0,0.65008305]
[1759246573754,0.1096577,113180.0,113170.0,0.66334305]
[1759246574463,0.1225777,113180.0,113170.0,0.65008305]
[1759246574761,0.1096577,113180.0,113170.0,0.30254305]
[1759246574957,1.2955652,113190.0,113180.0,0.0883276]
[1759246575159,1.3168552,113190.0,113180.0,0.1241476]
[1759246575756,1.3297752,113190.0,113180.0,0.02256]
[1759246576265,1.85318944,113190.0,113180.0,0.02256]
[1759246576862,1.00678944,113190.0,113180.0,0.1235073]
[1759246577063,1.85310944,113190.0,113180.0,0.1108873]
[1759246577263,1.00678944,113190.0,113180.0,0.1108873]
[1759246577561,1.84010944,113190.0,113180.0,0.1246973]
[1759246577763,1.85302944,113190.0,113180.0,0.1108873]
[1759246578766,2.29042944,113190.0,113180.0,0.02256]
[1759246578965,1.7670152,113190.0,113180.0,0.02256]
[1759246579162,2.29042944,113190.0,113180.0,0.02256]
[1759246579768,0.1100474,113180.0,113170.0,0.30210165]
[1759246582366,0.02172,113180.0,113170.0,0.30210165]
[1759246582555,0.1100476,113180.0,113170.0,0.30210165]
[1759246583566,0.02172,113180.0,113170.0,0.30210165]
[1759246583758,0.1100476,113180.0,113170.0,0.30210165]
[1759246584663,0.1100476,113180.0,113170.0,0.66290165]
[1759246585769,2.27737974,113190.0,113180.0,0.1242574]
[1759246585966,1.7539655,113190.0,113180.0,0.17186014]
[1759246586268,1.7668855,113190.0,113180.0,0.06972274]
[1759246586563,2.29029974,113190.0,113180.0,0.02212]
[1759246586771,0.1229676,113180.0,113170.0,0.15885104]
[1759246587369,0.1100476,113180.0,113170.0,0.30266104]
[1759246587964,0.02172,113180.0,113170.0,0.66346104]
[1759246588169,0.02172,113180.0,113170.0,1.13927254]
[1759246588368,2.27718074,113190.0,113180.0,0.1242576]
[1759246588570,0.9082465,113190.0,113180.0,0.17185964]
[1759246588770,1.7537665,113190.0,113180.0,0.17185964]
[1759246589070,0.9211665,113190.0,113180.0,0.17185964]
[1759246589272,0.9082465,113190.0,113180.0,0.17185964]
[1759246589467,0.45912,113190.0,113180.0,0.69527388]
[1759246589771,0.4374,113190.0,113180.0,1.40847184]
[1759246589963,0.5257195,113190.0,113180.0,1.40847184]
[1759246590166,0.5257195,113190.0,113180.0,1.45607177]
[1759246590366,0.5257195,113190.0,113180.0,1.45607219]
[1759246590866,0.5257195,113190.0,113180.0,1.40847184]
[1759246591166,0.5257195,113190.0,113180.0,0.8850576]
[1759246591368,0.5474395,113190.0,113180.0,2.25379184]
[1759246591767,0.5474395,113190.0,113180.0,2.31724536]
[1759246591975,0.5474395,113190.0,113180.0,1.47192536]
[1759246592161,0.5474395,113190.0,113180.0,2.63104876]
[1759246592374,0.5474395,113190.0,113180.0,1.78572876]
[1759246592774,0.5474395,113190.0,113180.0,0.94851112]
[1759246593067,0.5474395,113190.0,113180.0,1.72227524]
[1759246593272,0.5474395,113190.0,113180.0,0.8850576]
[1759246593473,0.96604832,113190.0,113180.0,0.94286642]
[1759246593775,0.5474395,113190.0,113180.0,0.94286642]
[1759246595970,0.5474395,113190.0,113180.0,0.8850576]
[1759246596177,0.96604832,113190.0,113180.0,1.30366642]
[1759246596576,0.5474395,113190.0,113180.0,1.30366642]
[1759246597172,0.5474395,113190.0,113180.0,1.36711994]
[1759246597476,0.5474395,113190.0,113180.0,1.78572876]
[1759246598277,0.96604832,113190.0,113180.0,1.36711994]
[1759246598478,0.96604832,113190.0,113180.0,2.63052876]
[1759246598677,0.5474395,113190.0,113180.0,2.63052876]
[1759246598874,0.5474395,113190.0,113180.0,1.78572876]
[1759246599071,0.54156832,113190.0,113180.0,0.02212]
[1759246599272,1.36017714,113190.0,113180.0,0.02212]
[1759246599471,1.36017714,113190.0,113170.0,0.65719612]
[1759246599472,0.1229676,113180.0,113170.0,0.67931612]
[1759246599678,0.52865642,113180.0,113170.0,1.09712494]
[1759246599883,0.52865642,113180.0,113170.0,1.09752494]
[1759246600069,0.52865642,113180.0,113170.0,0.67891612]
[1759246600274,0.54157642,113180.0,113170.0,0.67891612]
[1759246600773,0.54157642,113180.0,113170.0,0.59058352]
[1759246601173,0.54157642,113180.0,113170.0,0.22978352]
[1759246601873,1.37317642,113180.0,113170.0,0.22978352]
[1759246602380,1.38609642,113180.0,113170.0,0.22978352]
[1759246603374,1.38609642,113180.0,113170.0,0.21597352]
[1759246603576,2.98411406,113180.0,113170.0,0.04767337]
[1759246603774,2.98411406,113180.0,113170.0,0.04807337]
[1759246604082,2.56534524,113180.0,113170.0,0.06979337]
[1759246604276,1.74089419,113180.0,113170.0,0.02252]
[1759246604483,2.58521419,113180.0,113170.0,0.02252]
[1759246605171,2.56526524,113180.0,113170.0,0.02252]
[1759246605375,1.32098524,113180.0,113170.0,0.03633]
[1759246605578,2.16526524,113180.0,113170.0,0.03633]
[1759246605779,2.16526524,113180.0,113170.0,0.02252]
[1759246606180,1.32098524,113180.0,113170.0,0.02252]
[1759246606375,2.15226524,113180.0,113170.0,0.03633]
[1759246606676,2.16518524,113180.0,113170.0,0.0004]
[1759246608581,1.32098524,113180.0,113170.0,0.0004]
[1759246608879,2.16506524,113180.0,113170.0,0.02332]
[1759246609181,1.32098524,113180.0,113170.0,0.02372]
[1759246609382,2.16506524,113180.0,113170.0,0.02372]
[1759246609681,2.16502524,113180.0,113170.0,0.02372]
[1759246610085,1.32098524,113180.0,113170.0,0.02372]
[1759246610280,1.32098524,113180.0,113170.0,0.03737]
[1759246610281,1.73345642,113180.0,113170.0,0.03737]
[1759246610483,2.15206524,113180.0,113170.0,0.03737]
[1759246610879,2.16490524,113180.0,113170.0,0.0004]
[1759246611278,2.16490524,113180.0,113170.0,0.02372]
[1759246612883,2.56490524,113180.0,113170.0,0.0004]
[1759246613084,0.1192754,113170.0,113160.0,0.07099337]
[1759246613286,0.89868422,113170.0,113160.0,0.07179337]
[1759246613784,0.96921886,113170.0,113160.0,0.07179337]
[1759246613984,0.96921886,113170.0,113160.0,0.16013657]
[1759246614187,0.59848886,113170.0,113160.0,0.59239539]
[1759246614388,1.46347305,113170.0,113160.0,0.59239539]
[1759246614984,1.46343305,113170.0,113160.0,0.59239539]
[1759246615185,0.61971305,113170.0,113160.0,0.59239539]
[1759246615381,0.09175883,113170.0,113160.0,1.37180421]
[1759246615577,0.0883354,113170.0,113160.0,1.77180421]
[1759246615778,0.5467424,113180.0,113170.0,0.1253052]
[1759246615985,1.3903824,113180.0,113170.0,0.95230465]
[1759246616978,0.45841,113180.0,113170.0,0.90471402]
[1759246617178,0.4374,113180.0,113170.0,1.30471402]
[1759246617881,0.5467374,113180.0,113170.0,0.8861052]
[1759246618080,0.96534622,113180.0,113170.0,0.90471402]
[1759246618284,0.98693976,113180.0,113170.0,0.90471402]
[1759246618979,1.41555858,113180.0,113170.0,0.15924355]
[1759246619179,0.98693976,113180.0,113170.0,0.17289355]
[1759246619487,1.41177094,113180.0,113170.0,0.95230237]
[1759246619686,0.56833094,113180.0,113170.0,0.95230237]
[1759246620284,0.45899354,113180.0,113170.0,1.30471402]
[1759246620484,0.8865175,113200.0,113190.0,0.0883196]
[1759246620786,1.34710966,113200.0,113190.0,0.54389842]
[1759246620979,1.41098084,113200.0,113190.0,0.54389842]
[1759246621178,1.82958966,113200.0,113190.0,0.54389842]
[1759246621488,0.1194096,113190.0,113180.0,0.53367876]
[1759246621683,0.53801842,113190.0,113180.0,0.59149388]
[1759246621879,0.52793842,113190.0,113180.0,0.95229388]
[1759246622282,0.1093296,113190.0,113180.0,0.53368506]
[1759246622484,0.1194096,113190.0,113180.0,0.44535736]
[1759246622786,0.9625696,113190.0,113180.0,0.53408506]
[1759246623388,0.9625696,113190.0,113180.0,0.17328506]
[1759246623991,0.9625696,113190.0,113180.0,0.08495736]
[1759246624185,1.48590156,113190.0,113180.0,0.07130736]
[1759246624688,0.9625696,113190.0,113180.0,0.07130736]
[1759246625278,0.9625696,113190.0,113180.0,0.15963496]
[1759246626085,0.9625696,113190.0,113180.0,0.17328496]
[1759246626284,0.1194096,113190.0,113180.0,0.17328496]
[1759246626490,0.9522096,113190.0,113180.0,0.17328496]
[1759246628595,0.1093296,113190.0,113180.0,0.17328496]
[1759246628893,0.9520496,113190.0,113180.0,0.17328496]
[1759246629393,1.48546156,113190.0,113180.0,0.07130736]
[1759246629593,1.48546156,113190.0,113180.0,0.04798736]
[1759246629783,2.24626156,113190.0,113180.0,0.04798736]
[1759246630185,2.24626156,113190.0,113180.0,0.04758736]
[1759246630386,1.88546156,113190.0,113180.0,0.04798736]
[1759246630688,0.1194096,113190.0,113180.0,0.15963496]
[1759246630890,0.1093296,113190.0,113180.0,0.17328496]
[1759246631191,0.9518496,113190.0,113180.0,0.17328496]
[1759246633096,0.9517696,113190.0,113180.0,0.17328496]
[1759246633397,0.1093296,113190.0,113180.0,0.17328496]
[1759246634999,0.02097334,113200.0,113190.0,0.01365]
[1759246635299,0.02221,113220.0,113210.0,0.1252742]
[1759246635597,0.11299244,113220.0,113210.0,0.64860616]
[1759246635902,0.13984575,113220.0,113210.0,0.02332]
[1759246636699,0.13984575,113220.0,113210.0,0.38412]
[1759246637293,0.13984575,113220.0,113200.0,0.03611]
[1759246637294,0.1107839,113210.0,113200.0,0.03611]
[1759246637600,0.12993578,113210.0,113200.0,0.03611]
[1759246638501,0.12993578,113210.0,113200.0,0.08369736]
[1759246639098,0.59748555,113210.0,113200.0,0.04758736]
[1759246639298,0.123632,113200.0,113190.0,0.07004736]
[1759246639600,0.123632,113200.0,113190.0,0.02326]
[1759246640098,0.123632,113200.0,113190.0,0.07084355]
[1759246640295,0.123632,113200.0,113190.0,0.04838355]
[1759246640296,0.57834177,113200.0,113190.0,0.04838355]
[1759246640500,0.57834177,113200.0,113190.0,0.0008]
[1759246640696,0.1236398,113190.0,113180.0,0.44449355]
[1759246640896,0.1236398,113190.0,113180.0,0.44529355]
[1759246641195,0.1236398,113190.0,113180.0,0.44449355]
[1759246641393,0.1236398,113190.0,113180.0,0.44489355]
[1759246641897,0.1107998,113190.0,113180.0,0.53322115]
[1759246642103,0.1107965,113200.0,113190.0,0.03562]
[1759246642406,0.1107965,113200.0,113190.0,0.44401909]
[1759246642602,0.02248,113200.0,113190.0,0.53233889]
[1759246643095,0.110792,113200.0,113190.0,0.53233889]
[1759246644095,0.110792,113200.0,113190.0,0.4847398]
[1759246644909,0.02248,113200.0,113190.0,0.4847398]
[1759246645800,0.1107917,113200.0,113190.0,0.4847398]
[1759246647198,0.1107917,113200.0,113190.0,0.54819332]
[1759246648103,0.1107917,113200.0,113190.0,0.39642]
[1759246648304,0.1107917,113200.0,113190.0,0.4847396]
[1759246651207,0.02248,113200.0,113190.0,0.4847396]
[1759246651406,0.45655188,113210.0,113200.0,0.123932]
[1759246651604,0.45655188,113210.0,113200.0,0.93944177]
[1759246651804,0.45655188,113210.0,113200.0,1.84913529]
[1759246652309,0.4374,113210.0,113200.0,1.84913529]
[1759246652608,0.07146064,113220.0,113210.0,0.1239242]
[1759246652609,0.15935704,113220.0,113210.0,0.1239242]
[1759246652804,0.18223704,113220.0,113210.0,1.0029125]
[1759246653011,0.07146064,113220.0,113210.0,1.79452273]
[1759246653302,0.0004,113220.0,113210.0,1.8884325]
[1759246653508,0.0004,113220.0,113210.0,2.6104725]
[1759246653705,0.1107662,113240.0,113230.0,0.1239086]
[1759246653906,0.1107662,113240.0,113230.0,0.4847086]
[1759246654308,0.12975596,113240.0,113230.0,0.53225497]
[1759246654607,0.20206153,113240.0,113230.0,0.53225497]
[1759246657312,0.20206153,113240.0,113230.0,0.4756242]
[1759246657605,0.21490153,113240.0,113230.0,0.05411783]
[1759246658216,0.21490153,113240.0,113230.0,0.05451783]
[1759246658407,1.4304113,113240.0,113230.0,0.03205783]
[1759246658611,0.1208486,113230.0,113220.0,0.0792042]
[1759246658910,1.37375837,113230.0,113220.0,0.0800042]
[1759246659207,0.9190486,113230.0,113220.0,0.03165783]
[1759246659409,0.9190486,113230.0,113220.0,0.03205783]
[1759246660405,1.37375837,113230.0,113220.0,0.03205783]
[1759246660606,1.01295837,113230.0,113220.0,0.05451783]
[1759246661006,0.5582486,113230.0,113220.0,0.05451783]
[1759246663011,0.9190486,113230.0,113220.0,0.05451783]
[1759246664111,0.9089686,113230.0,113220.0,0.06767783]
[1759246664303,0.45988,113230.0,113220.0,1.01903037]
[1759246664611,0.5481686,113230.0,113220.0,0.5643206]
[1759246664806,0.5485686,113230.0,113220.0,0.53266277]
[1759246666411,0.5485684,113230.0,113220.0,0.53266277]
[1759246666611,0.5481684,113230.0,113220.0,0.53266277]
[1759246666912,0.5485684,113230.0,113220.0,0.53266277]
[1759246667514,0.1111684,113230.0,113220.0,0.53266277]
[1759246669110,0.0004,113230.0,113220.0,0.98737254]
[1759246669309,0.0004,113230.0,113220.0,2.23225254]
[1759246669611,0.20164063,113240.0,113230.0,0.1244984]
[1759246669812,0.20244063,113240.0,113230.0,0.15616353]
[1759246670115,0.20244063,113240.0,113230.0,0.51696353]
[1759246671313,0.20244063,113240.0,113230.0,0.5645099]
[1759246671913,0.11415533,113240.0,113230.0,0.5645099]
[1759246672213,0.20163583,113240.0,113230.0,0.5645099]
[1759246672413,0.20203583,113240.0,113230.0,0.5645099]
[1759246673109,0.20203583,113240.0,113230.0,1.4085499]
[1759246673413,0.20203583,113240.0,113230.0,1.37684477]
[1759246673714,0.20203583,113240.0,113230.0,0.53284467]
[1759246673914,0.20203583,113240.0,113230.0,1.37672467]
[1759246674402,0.20203583,113240.0,113230.0,0.53284467]
[1759246674605,0.20203583,113240.0,113230.0,1.37668467]
[1759246674812,0.20203583,113240.0,113230.0,0.53284467]
[1759246675013,0.21211583,113240.0,113230.0,0.53284497]
[1759246675514,0.20203583,113240.0,113230.0,0.53284497]
[1759246676210,0.56283583,113240.0,113230.0,0.11544171]
[1759246676813,0.56283583,113240.0,113230.0,0.11584171]
[1759246677014,0.56283583,113240.0,113230.0,0.11544171]
[1759246677416,0.56283583,113240.0,113230.0,0.08375637]
[1759246677617,0.56283583,113240.0,113230.0,0.08415637]
[1759246677810,0.57567583,113240.0,113230.0,0.07023637]
[1759246678009,0.57567583,113240.0,113230.0,0.07063637]
[1759246678410,1.4303856,113240.0,113230.0,0.03210616]
[1759246678705,2.2742256,113240.0,113230.0,0.03210616]
[1759246679109,2.2742256,113240.0,113220.0,0.03170616]
[1759246679310,0.4843886,113230.0,113220.0,0.08005253]
[1759246679509,0.1235886,113230.0,113220.0,0.19103893]
[1759246679709,0.1235886,113230.0,113220.0,0.10274253]
[1759246679906,0.4843886,113230.0,113220.0,0.10274253]
[1759246680321,0.93909837,113230.0,113220.0,0.08005253]
[1759246680522,0.93909837,113230.0,113220.0,0.07925253]
[1759246680911,1.33909837,113230.0,113220.0,0.07965253]
[1759246681116,1.33909837,113230.0,113220.0,0.07925253]
[1759246681319,1.33909837,113230.0,113220.0,0.04794637]
[1759246682014,1.33909837,113230.0,113220.0,0.07929612]
[1759246682712,1.33909837,113230.0,113220.0,0.07969612]
[1759246683023,1.33909837,113230.0,113220.0,0.07929612]
[1759246683321,1.33909837,113230.0,113220.0,0.07969612]
[1759246684518,1.33909837,113230.0,113220.0,0.03174975]
[1759246684717,0.0882961,113220.0,113210.0,0.03174975]
[1759246684923,2.10390587,113220.0,113210.0,0.03174975]
[1759246685110,2.18390587,113220.0,113210.0,0.03174975]
[1759246685314,2.49390587,113220.0,113210.0,0.03214975]
[1759246685625,2.39390587,113220.0,113210.0,0.03214975]
[1759246685927,2.46390587,113220.0,113210.0,0.03214975]
[1759246686217,2.84641568,113220.0,113210.0,0.0004]
[1759246686424,2.00161568,113220.0,113210.0,0.0004]
[1759246686626,0.1208442,113210.0,113200.0,0.07929612]
[1759246686824,0.90025399,113210.0,113200.0,0.07929612]
[1759246687123,1.74509399,113210.0,113200.0,0.03174975]
[1759246687424,1.74509399,113210.0,113200.0,0.03214975]
[1759246687819,1.74525399,113210.0,113200.0,0.03214975]
[1759246688321,1.74525399,113210.0,113200.0,0.0004]
[1759246688822,1.74521399,113210.0,113200.0,0.0004]
[1759246689016,0.088312,113200.0,113190.0,0.03174975]
[1759246689218,0.90302179,113200.0,113190.0,0.03254975]
[1759246689523,1.74790179,113200.0,113190.0,0.03174975]
[1759246689729,1.82011284,113200.0,113190.0,0.03214975]
[1759246690019,1.82015284,113200.0,113190.0,0.0004]
[1759246690625,2.12015284,113200.0,113190.0,0.0004]
[1759246690822,1.82015284,113200.0,113190.0,0.0004]
[1759246691015,2.11015284,113200.0,113190.0,0.0004]
[1759246691221,1.82015284,113200.0,113190.0,0.0004]
[1759246691520,0.97523284,113200.0,113190.0,0.0004]
[1759246691825,0.1107798,113190.0,113180.0,0.15708735]
[1759246692023,1.37442959,113190.0,113180.0,0.06875975]
[1759246692527,1.37458959,113190.0,113180.0,0.06875975]
[1759246692922,1.37466959,113190.0,113180.0,0.06875975]
[1759246693729,1.74830959,113190.0,113180.0,0.02349]
[1759246694827,1.74810959,113190.0,113180.0,0.02349]
[1759246695529,1.74810959,113190.0,113180.0,0.0008]
[1759246695932,1.74810959,113190.0,113180.0,0.02349]
[1759246696227,0.54222959,113190.0,113180.0,0.1118176]
[1759246696428,1.37414959,113190.0,113180.0,0.03701]
[1759246696826,1.38677959,113190.0,113180.0,0.03701]
[1759246697026,1.38677959,113190.0,113180.0,0.02349]
[1759246697231,0.54201959,113190.0,113180.0,0.02349]
[1759246697440,1.74757959,113190.0,113180.0,0.02349]
[1759246697625,1.74757959,113190.0,113180.0,0.0008]
[1759246698321,2.16654336,113190.0,113180.0,0.0008]
[1759246698523,2.16654336,113190.0,113170.0,0.05491975]
[1759246698524,0.0883276,113180.0,113170.0,0.05491975]
[1759246698729,1.32147116,113180.0,113170.0,0.02397]
[1759246698934,0.9553476,113180.0,113170.0,0.03681]
[1759246699229,0.52925438,113180.0,113170.0,0.57488163]
[1759246699434,1.37413438,113180.0,113170.0,0.97528163]
[1759246699733,1.80651116,113180.0,113170.0,0.05531975]
[1759246700125,1.80651116,113180.0,113170.0,0.05491975]
[1759246700326,1.80651116,113180.0,113170.0,0.05531975]
[1759246701028,0.9689376,113180.0,113170.0,0.05531975]
[1759246701326,1.80651116,113180.0,113170.0,0.06815975]
[1759246701636,1.82356652,113180.0,113170.0,0.05531975]
[1759246702232,1.82356652,113180.0,113170.0,0.03214975]
[1759246702534,0.97352296,113180.0,113170.0,0.02357]
[1759246702830,1.81109652,113180.0,113170.0,0.1119051]
[1759246703134,1.82372652,113180.0,113170.0,0.02357]
[1759246704637,1.82376652,113180.0,113170.0,0.1119053]
[1759246704938,1.82376652,113180.0,113170.0,0.0004]
[1759246705130,0.97772652,113180.0,113170.0,0.1119053]
[1759246705532,0.96509652,113180.0,113170.0,0.1119053]
[1759246705733,0.96509652,113180.0,113170.0,0.1257953]
[1759246706134,0.54630974,113180.0,113170.0,0.57633183]
[1759246706435,1.39234974,113180.0,113170.0,0.57633183]
[1759246707433,1.39210974,113180.0,113170.0,0.57633183]
[1759246708137,0.54630974,113180.0,113170.0,0.57633183]
[1759246708337,1.82371652,113180.0,113170.0,0.19120142]
[1759246708537,1.82371652,113180.0,113170.0,0.03214975]
[1759246708837,1.82371652,113180.0,113170.0,0.05330975]
[1759246710439,1.82371652,113180.0,113170.0,0.03214975]
[1759246711042,2.18451652,113180.0,113170.0,0.03214975]
[1759246712640,2.18451652,113180.0,113170.0,0.14164505]
[1759246713136,2.18451652,113180.0,113170.0,0.07969612]
[1759246713541,2.18451652,113180.0,113170.0,0.07929612]
[1759246713843,2.18451652,113180.0,113170.0,0.07969612]
[1759246714435,2.18451652,113180.0,113170.0,0.03214975]
[1759246714638,3.0033033,113180.0,113170.0,0.03214975]
[1759246714836,3.3233033,113180.0,113170.0,0.03214975]
[1759246715138,3.3233033,113180.0,113160.0,0.07929612]
[1759246715139,0.1197151,113170.0,113160.0,0.07929612]
[1759246715345,2.16320866,113170.0,113160.0,0.07885712]
[1759246715642,1.31808866,113170.0,113160.0,0.03174975]
[1759246715939,1.31808866,113170.0,113160.0,0.03214975]
[1759246716140,2.16332866,113170.0,113160.0,0.03214975]
[1759246716733,1.31808866,113170.0,113160.0,0.03214975]
[1759246716929,2.16312866,113170.0,113160.0,0.03214975]
[1759246717638,2.87312866,113170.0,113160.0,0.03214975]
[1759246717836,2.56292866,113170.0,113160.0,0.0004]
[1759246718040,0.1228831,113160.0,113150.0,0.03174975]
[1759246718242,1.32125666,113160.0,113150.0,0.03254975]
[1759246718438,1.74004344,113160.0,113150.0,0.03254975]
[1759246719341,2.36004344,113160.0,113150.0,0.0008]
[1759246719542,0.1009809,113150.0,113140.0,0.03174975]
[1759246719740,2.16581446,113150.0,113140.0,0.03174975]
[1759246720042,2.16581446,113150.0,113140.0,0.05290975]
[1759246720347,1.74714768,113150.0,113140.0,0.14206855]
[1759246720534,1.38634768,113150.0,113140.0,0.14206855]
[1759246720740,1.38634768,113150.0,113140.0,0.1103188]
[1759246721044,0.54146768,113150.0,113140.0,0.1103188]
[1759246721241,1.38646768,113150.0,113140.0,0.1103188]
[1759246721441,1.38646768,113150.0,113140.0,0.14204838]
[1759246721845,0.54146768,113150.0,113140.0,0.05368958]
[1759246722042,1.38638768,113150.0,113140.0,0.05368958]
[1759246722343,2.23838012,113150.0,113140.0,0.03252958]
[1759246722542,2.23838012,113150.0,113140.0,0.03172958]
[1759246722741,2.23838012,113150.0,113140.0,0.03212958]
[1759246723245,2.23830012,113150.0,113140.0,0.03212958]
[1759246724245,2.23830012,113150.0,113140.0,0.03172958]
[1759246724246,1.39346012,113150.0,113140.0,0.03172958]
[1759246724443,2.23822012,113150.0,113140.0,0.03172958]
[1759246724643,2.23818012,113150.0,113140.0,0.03212958]
[1759246724838,1.39346012,113150.0,113140.0,0.05328958]
[1759246725046,2.23802012,113150.0,113140.0,0.14164808]
[1759246725242,1.39346012,113150.0,113140.0,0.14164808]
[1759246725646,2.23810012,113150.0,113140.0,0.14164808]
[1759246725841,1.39346012,113150.0,113140.0,0.14164808]
[1759246726041,2.23794012,113150.0,113140.0,0.14164808]
[1759246726243,2.23794012,113150.0,113140.0,0.03212958]
[1759246726640,1.39346012,113150.0,113140.0,0.03212958]
[1759246726840,2.23782012,113150.0,113140.0,0.03212958]
[1759246727045,1.39346012,113150.0,113140.0,0.03212958]
[1759246727249,2.23782012,113150.0,113140.0,0.03212958]
[1759246727949,1.39346012,113150.0,113140.0,0.03212958]
[1759246728146,2.23774012,113150.0,113140.0,0.02156]
[1759246728343,2.23774012,113150.0,113140.0,0.0004]
[1759246730650,2.23746012,113150.0,113140.0,0.0004]
[1759246731048,1.39346012,113150.0,113140.0,0.0004]
[1759246731248,2.23734012,113150.0,113140.0,0.0004]
[1759246731551,0.96204334,113150.0,113140.0,0.1243588]
[1759246732158,0.54325656,113150.0,113140.0,0.15608838]
[1759246732353,0.96204334,113150.0,113140.0,0.15608838]
[1759246732551,1.44492334,113150.0,113140.0,0.51688838]
[1759246732750,1.44512334,113150.0,113140.0,0.51688838]
[1759246732955,1.44512334,113150.0,113140.0,0.93567516]
[1759246733256,0.18245636,113150.0,113140.0,1.33567516]
[1759246733443,1.44508314,113150.0,113140.0,1.33567516]
[1759246736558,1.44508314,113150.0,113140.0,0.82852958]
[1759246736863,1.81851314,113150.0,113140.0,0.05479958]
[1759246737164,1.81851314,113150.0,113140.0,0.03172958]
[1759246737460,1.81851314,113150.0,113140.0,0.05479958]
[1759246738466,2.23729992,113150.0,113140.0,0.03212958]
[1759246738659,2.23729992,113150.0,113140.0,0.03172958]
[1759246738858,1.81851314,113150.0,113140.0,0.05479958]
[1759246739967,2.23729992,113150.0,113140.0,0.03212958]
[1759246742564,2.23729992,113150.0,113140.0,0.03172958]
[1759246742763,2.23729992,113150.0,113140.0,0.03212958]
[1759246743270,1.39345992,113150.0,113140.0,0.03212958]
[1759246743469,2.23693992,113150.0,113140.0,0.03212958]
[1759246744172,2.23693992,113150.0,113140.0,0.07969001]
[1759246744372,1.39345992,113150.0,113140.0,0.07969001]
[1759246744564,2.23693992,113150.0,113140.0,0.07969001]
[1759246746661,1.39345992,113150.0,113140.0,0.07969001]
[1759246746861,2.23693992,113150.0,113140.0,0.07969001]
[1759246747063,2.36802338,113150.0,113140.0,0.07969001]
[1759246747264,2.23693992,113150.0,113140.0,0.07969001]
[1759246748176,2.23693992,113150.0,113140.0,0.04796043]
[1759246748769,2.23693992,113150.0,113140.0,0.07976873]
[1759246748770,3.0557267,113150.0,113140.0,0.07976873]
[1759246748969,3.3457267,113150.0,113140.0,0.0322083]
[1759246749171,0.1246887,113140.0,113130.0,0.04756043]
[1759246749380,1.74184904,113140.0,113130.0,0.04836043]
[1759246750078,1.74184904,113140.0,113120.0,0.06352835]
[1759246750079,0.1213165,113130.0,113120.0,0.04764807]
[1759246750280,2.16313006,113130.0,113120.0,0.04844807]
[1759246750479,1.31969006,113130.0,113120.0,0.04844807]
[1759246750670,2.16317006,113130.0,113120.0,0.04764807]
[1759246750870,2.16313006,113130.0,113120.0,0.00048764]
[1759246751978,1.31969006,113130.0,113120.0,0.00048764]
[1759246752180,2.16317006,113130.0,113120.0,0.00048764]
[1759246753078,2.16313006,113130.0,113120.0,0.00048764]
[1759246753279,1.31969006,113130.0,113120.0,0.00048764]
[1759246753473,2.16313006,113130.0,113120.0,0.00048764]
[1759246753878,1.31969006,113130.0,113120.0,0.00048764]
[1759246754074,2.16317006,113130.0,113120.0,0.00048764]
[1759246754277,1.31969006,113130.0,113120.0,0.00048764]
[1759246754678,2.16313006,113130.0,113120.0,0.00048764]
[1759246755776,1.31969006,113130.0,113120.0,0.11153204]
[1759246755971,0.4821165,113130.0,113120.0,0.12446204]
[1759246756272,0.44205678,113130.0,113120.0,1.35160925]
[1759246756780,1.28549678,113130.0,113120.0,1.35160925]
[1759246756976,1.37386308,113130.0,113120.0,1.35160925]
[1759246757178,0.9550763,113130.0,113120.0,1.35160925]
[1759246757378,1.37386308,113130.0,113120.0,1.35160925]
[1759246757775,0.53042308,113130.0,113120.0,1.35160925]
[1759246758077,0.5484036,113140.0,113130.0,0.1244365]
[1759246758277,0.4374,113140.0,113130.0,1.3516506]
[1759246758471,0.4374,113140.0,113130.0,1.78625077]
[1759246758674,0.4374,113140.0,113130.0,1.36746399]
[1759246758875,0.09451566,113150.0,113140.0,0.1235385]
[1759246759075,0.09451566,113150.0,113140.0,0.4843385]
[1759246759375,0.07240566,113150.0,113140.0,1.78535277]
[1759246759682,1.37268558,113160.0,113150.0,0.1235307]
[1759246759884,2.16490236,113160.0,113150.0,0.04761418]
[1759246760078,2.16490236,113160.0,113140.0,0.04841418]
[1759246760079,0.1231509,113150.0,113140.0,0.04841418]
[1759246760278,0.90306952,113150.0,113140.0,0.04841418]
[1759246760577,0.90306952,113150.0,113140.0,0.04761418]
[1759246760787,0.1104687,113140.0,113130.0,0.08359418]
[1759246760984,1.37298732,113140.0,113130.0,0.08359418]
[1759246761280,1.37298732,113140.0,113130.0,0.17196068]
[1759246761485,1.38282732,113140.0,113130.0,0.17196068]
[1759246762278,1.37298732,113140.0,113130.0,0.17196068]
[1759246762585,0.9538687,113140.0,113130.0,0.17196068]
[1759246762786,1.37298732,113140.0,113130.0,0.17196068]
[1759246763185,1.38282732,113140.0,113130.0,0.17196068]
[1759246764384,1.37298732,113140.0,113130.0,0.17196068]
[1759246764574,0.52958732,113140.0,113130.0,0.17196068]
[1759246764773,1.37286732,113140.0,113130.0,0.57196068]